{"text_format":"1","workbook":"xlsx","n_sheets":3,"sheets":["Лист1","Лист2","Лист3"],"not_rendered":{"charts":0,"images":0,"macros":0,"external_links":0,"defined_names":0,"comments":0,"pivot_tables":1},"unopened":[],"bounds":{"document_bytes":16777216,"sheet_cells":100000,"rows_first":2000,"rows_last":500,"rows_between":2000,"halvings":0,"cell_chars":16384,"cell_head_chars":4096},"cells_cut":0,"cells_raw":0,"read":"whole","date_system":"1900"}

{"sheet":"Лист1","index":0,"n_rows":54,"n_cols":14,"rows_kept":54,"cut":false,"hidden":false,"merged":[]}
["Дата действия","Время действия","Активность","Клиент","Телефон","ЛПР","Адрес","Описание","Статус",null,null,null,"Статус","(несколько элементов)"]
["2016-10-01",null,"Звонок","Вася","","","","","В работе"]
["2015-12-02",null,"Встреча","Петя ","","","",null,"Дедлайн",null,null,null,"Названия строк"]
["2016-03-02",null,"Встреча","Миша","","","",null,"Дедлайн",null,null,null,"Вася"]
["2016-10-01",null,"Встреча","Петя ","","","",null,"Некачественный лид",null,null,null,"Коля"]
["2015-12-02",null,"Звонок","Вася","","","",null,"В работе",null,null,null,"Маша"]
["2016-03-02",null,"Звонок","Маша","","","",null,"Дедлайн",null,null,null,"Миша"]
["2016-10-01",null,"Звонок","Коля","","","",null,"Постпродажный сервис",null,null,null,"Петя "]
["2015-12-02",null,"Звонок","Коля","","","",null,"В работе",null,null,null,"Толя"]
["2016-03-02",null,"Звонок","Толя","","","",null,"Дедлайн",null,null,null,"Общий итог"]
["2016-10-01",null,"Звонок","Толя","","","",null,"Дедлайн"]
["2015-12-02",null,"Звонок","Коля","","","",null,"В работе"]
["2016-03-02",null,"Звонок","Толя","","","",null,"Дедлайн"]
["2016-10-01",null,"Встреча","Вася","","","",null,"В работе"]
["2015-12-02",null,"Встреча","Миша","","","",null,"Дедлайн"]
["2016-03-02",null,"Встреча","Маша","","","",null,"В работе"]
["2016-10-01",null,"Встреча","Миша","","","",null,"Дедлайн",null,null,null,{"$f":"INDEX($D$2:$D$38,SMALL(IF(($I$2:$I$38<>\"Некачественный лид\")*($I$2:$I$38<>\"Постпродажный сервис\"),ROW($D$2:$D$38)-1),ROW(A1)))","v":"Вася"}]
["2015-12-02",null,"Встреча","Петя ","","","",null,"В работе",null,null,null,{"$f":"INDEX($D$2:$D$38,SMALL(IF(($I$2:$I$38<>\"Некачественный лид\")*($I$2:$I$38<>\"Постпродажный сервис\"),ROW($D$2:$D$38)-1),ROW(A2)))","v":"Петя "}]
["2016-03-02",null,"Встреча","Петя ","","","",null,"Дедлайн",null,null,null,{"$f":"INDEX($D$2:$D$38,SMALL(IF(($I$2:$I$38<>\"Некачественный лид\")*($I$2:$I$38<>\"Постпродажный сервис\"),ROW($D$2:$D$38)-1),ROW(A3)))","v":"Миша"}]
["2016-10-01",null,"Встреча","Петя ","","","",null,"В работе",null,null,null,{"$f":"INDEX($D$2:$D$38,SMALL(IF(($I$2:$I$38<>\"Некачественный лид\")*($I$2:$I$38<>\"Постпродажный сервис\"),ROW($D$2:$D$38)-1),ROW(A4)))","v":"Вася"}]
["2015-12-02",null,"Звонок","Маша","","","",null,"Дедлайн",null,null,null,{"$f":"INDEX($D$2:$D$38,SMALL(IF(($I$2:$I$38<>\"Некачественный лид\")*($I$2:$I$38<>\"Постпродажный сервис\"),ROW($D$2:$D$38)-1),ROW(A5)))","v":"Маша"}]
["2016-03-02",null,"Звонок","Миша","","","",null,"В работе",null,null,null,{"$f":"INDEX($D$2:$D$38,SMALL(IF(($I$2:$I$38<>\"Некачественный лид\")*($I$2:$I$38<>\"Постпродажный сервис\"),ROW($D$2:$D$38)-1),ROW(A6)))","v":"Коля"}]
["2016-10-01",null,"Встреча","Толя","","","",null,"Дедлайн",null,null,null,{"$f":"INDEX($D$2:$D$38,SMALL(IF(($I$2:$I$38<>\"Некачественный лид\")*($I$2:$I$38<>\"Постпродажный сервис\"),ROW($D$2:$D$38)-1),ROW(A7)))","v":"Толя"}]
["2015-12-02",null,"Встреча","Коля","","","",null,"В работе",null,null,null,{"$f":"INDEX($D$2:$D$38,SMALL(IF(($I$2:$I$38<>\"Некачественный лид\")*($I$2:$I$38<>\"Постпродажный сервис\"),ROW($D$2:$D$38)-1),ROW(A8)))","v":"Толя"}]
["2016-03-02",null,"Встреча","Толя","","","",null,"Дедлайн",null,null,null,{"$f":"INDEX($D$2:$D$38,SMALL(IF(($I$2:$I$38<>\"Некачественный лид\")*($I$2:$I$38<>\"Постпродажный сервис\"),ROW($D$2:$D$38)-1),ROW(A9)))","v":"Коля"}]
["2016-10-01",null,"Встреча","Коля","","","",null,"В работе",null,null,null,{"$f":"INDEX($D$2:$D$38,SMALL(IF(($I$2:$I$38<>\"Некачественный лид\")*($I$2:$I$38<>\"Постпродажный сервис\"),ROW($D$2:$D$38)-1),ROW(A10)))","v":"Толя"}]
["2015-12-02",null,"Встреча","Коля","","","",null,"Дедлайн",null,null,null,{"$f":"INDEX($D$2:$D$38,SMALL(IF(($I$2:$I$38<>\"Некачественный лид\")*($I$2:$I$38<>\"Постпродажный сервис\"),ROW($D$2:$D$38)-1),ROW(A11)))","v":"Вася"}]
["2016-03-02",null,"Звонок","Коля","","","",null,"В работе",null,null,null,{"$f":"INDEX($D$2:$D$38,SMALL(IF(($I$2:$I$38<>\"Некачественный лид\")*($I$2:$I$38<>\"Постпродажный сервис\"),ROW($D$2:$D$38)-1),ROW(A12)))","v":"Миша"}]
["2016-10-01",null,"Звонок","Толя","","","",null,"Дедлайн",null,null,null,{"$f":"INDEX($D$2:$D$38,SMALL(IF(($I$2:$I$38<>\"Некачественный лид\")*($I$2:$I$38<>\"Постпродажный сервис\"),ROW($D$2:$D$38)-1),ROW(A13)))","v":"Маша"}]
["2015-12-02",null,"Звонок","Толя","","","",null,"В работе",null,null,null,{"$f":"INDEX($D$2:$D$38,SMALL(IF(($I$2:$I$38<>\"Некачественный лид\")*($I$2:$I$38<>\"Постпродажный сервис\"),ROW($D$2:$D$38)-1),ROW(A14)))","v":"Миша"}]
["2016-03-02",null,"Звонок","Коля","","","",null,"Дедлайн",null,null,null,{"$f":"INDEX($D$2:$D$38,SMALL(IF(($I$2:$I$38<>\"Некачественный лид\")*($I$2:$I$38<>\"Постпродажный сервис\"),ROW($D$2:$D$38)-1),ROW(A15)))","v":"Петя "}]
["2016-10-01",null,"Звонок","Толя","","","",null,"В работе",null,null,null,{"$f":"INDEX($D$2:$D$38,SMALL(IF(($I$2:$I$38<>\"Некачественный лид\")*($I$2:$I$38<>\"Постпродажный сервис\"),ROW($D$2:$D$38)-1),ROW(A16)))","v":"Петя "}]
["2015-12-02",null,"Звонок","Петя ","","","",null,"Дедлайн",null,null,null,{"$f":"INDEX($D$2:$D$38,SMALL(IF(($I$2:$I$38<>\"Некачественный лид\")*($I$2:$I$38<>\"Постпродажный сервис\"),ROW($D$2:$D$38)-1),ROW(A17)))","v":"Петя "}]
["2016-03-02",null,"Звонок","Вася","","","",null,"В работе",null,null,null,{"$f":"INDEX($D$2:$D$38,SMALL(IF(($I$2:$I$38<>\"Некачественный лид\")*($I$2:$I$38<>\"Постпродажный сервис\"),ROW($D$2:$D$38)-1),ROW(A18)))","v":"Маша"}]
["2016-10-01",null,"Звонок","Маша","","","",null,"Дедлайн",null,null,null,{"$f":"INDEX($D$2:$D$38,SMALL(IF(($I$2:$I$38<>\"Некачественный лид\")*($I$2:$I$38<>\"Постпродажный сервис\"),ROW($D$2:$D$38)-1),ROW(A19)))","v":"Миша"}]
["2015-12-02",null,"Звонок","Коля","","","",null,"В работе",null,null,null,{"$f":"INDEX($D$2:$D$38,SMALL(IF(($I$2:$I$38<>\"Некачественный лид\")*($I$2:$I$38<>\"Постпродажный сервис\"),ROW($D$2:$D$38)-1),ROW(A20)))","v":"Толя"}]
["2015-12-03",null,"Звонок","Коля","","","",null,"Дедлайн",null,null,null,{"$f":"INDEX($D$2:$D$38,SMALL(IF(($I$2:$I$38<>\"Некачественный лид\")*($I$2:$I$38<>\"Постпродажный сервис\"),ROW($D$2:$D$38)-1),ROW(A21)))","v":"Коля"}]
[null,null,null,null,"","","",null,null,null,null,null,{"$f":"INDEX($D$2:$D$38,SMALL(IF(($I$2:$I$38<>\"Некачественный лид\")*($I$2:$I$38<>\"Постпродажный сервис\"),ROW($D$2:$D$38)-1),ROW(A22)))","v":"Толя"}]
[null,null,null,null,"","","",null,null,null,null,null,{"$f":"INDEX($D$2:$D$38,SMALL(IF(($I$2:$I$38<>\"Некачественный лид\")*($I$2:$I$38<>\"Постпродажный сервис\"),ROW($D$2:$D$38)-1),ROW(A23)))","v":"Коля"}]
[null,null,null,null,"","","",null,null,null,null,null,{"$f":"INDEX($D$2:$D$38,SMALL(IF(($I$2:$I$38<>\"Некачественный лид\")*($I$2:$I$38<>\"Постпродажный сервис\"),ROW($D$2:$D$38)-1),ROW(A24)))","v":"Коля"}]
[null,null,null,null,"","","",null,null,null,null,null,{"$f":"INDEX($D$2:$D$38,SMALL(IF(($I$2:$I$38<>\"Некачественный лид\")*($I$2:$I$38<>\"Постпродажный сервис\"),ROW($D$2:$D$38)-1),ROW(A25)))","v":"Коля"}]
[null,null,null,null,"","","",null,null,null,null,null,{"$f":"INDEX($D$2:$D$38,SMALL(IF(($I$2:$I$38<>\"Некачественный лид\")*($I$2:$I$38<>\"Постпродажный сервис\"),ROW($D$2:$D$38)-1),ROW(A26)))","v":"Толя"}]
[null,null,null,null,"","","",null,null,null,null,null,{"$f":"INDEX($D$2:$D$38,SMALL(IF(($I$2:$I$38<>\"Некачественный лид\")*($I$2:$I$38<>\"Постпродажный сервис\"),ROW($D$2:$D$38)-1),ROW(A27)))","v":"Толя"}]
[null,null,null,null,"","","",null,null,null,null,null,{"$f":"INDEX($D$2:$D$38,SMALL(IF(($I$2:$I$38<>\"Некачественный лид\")*($I$2:$I$38<>\"Постпродажный сервис\"),ROW($D$2:$D$38)-1),ROW(A28)))","v":"Коля"}]
[null,null,null,null,"","","",null,null,null,null,null,{"$f":"INDEX($D$2:$D$38,SMALL(IF(($I$2:$I$38<>\"Некачественный лид\")*($I$2:$I$38<>\"Постпродажный сервис\"),ROW($D$2:$D$38)-1),ROW(A29)))","v":"Толя"}]
[null,null,null,null,"","","",null,null,null,null,null,{"$f":"INDEX($D$2:$D$38,SMALL(IF(($I$2:$I$38<>\"Некачественный лид\")*($I$2:$I$38<>\"Постпродажный сервис\"),ROW($D$2:$D$38)-1),ROW(A30)))","v":"Петя "}]
[null,null,null,null,"","","",null,null,null,null,null,{"$f":"INDEX($D$2:$D$38,SMALL(IF(($I$2:$I$38<>\"Некачественный лид\")*($I$2:$I$38<>\"Постпродажный сервис\"),ROW($D$2:$D$38)-1),ROW(A31)))","v":"Вася"}]
[null,null,null,null,"","","",null,null,null,null,null,{"$f":"INDEX($D$2:$D$38,SMALL(IF(($I$2:$I$38<>\"Некачественный лид\")*($I$2:$I$38<>\"Постпродажный сервис\"),ROW($D$2:$D$38)-1),ROW(A32)))","v":"Маша"}]
[null,null,null,null,"","","",null,null,null,null,null,{"$f":"INDEX($D$2:$D$38,SMALL(IF(($I$2:$I$38<>\"Некачественный лид\")*($I$2:$I$38<>\"Постпродажный сервис\"),ROW($D$2:$D$38)-1),ROW(A33)))","v":"Коля"}]
[null,null,null,null,"","","",null,null,null,null,null,{"$f":"INDEX($D$2:$D$38,SMALL(IF(($I$2:$I$38<>\"Некачественный лид\")*($I$2:$I$38<>\"Постпродажный сервис\"),ROW($D$2:$D$38)-1),ROW(A34)))","v":"Коля"}]
[null,null,null,null,"","","",null,null,null,null,null,{"$f":"INDEX($D$2:$D$38,SMALL(IF(($I$2:$I$38<>\"Некачественный лид\")*($I$2:$I$38<>\"Постпродажный сервис\"),ROW($D$2:$D$38)-1),ROW(A35)))","v":0}]
[null,null,null,null,"","","",null,null,null,null,null,{"$f":"INDEX($D$2:$D$38,SMALL(IF(($I$2:$I$38<>\"Некачественный лид\")*($I$2:$I$38<>\"Постпродажный сервис\"),ROW($D$2:$D$38)-1),ROW(A36)))","v":{"$error":"#NUM!"}}]
[null,null,null,null,null,null,null,null,null,null,null,null,{"$f":"INDEX($D$2:$D$38,SMALL(IF(($I$2:$I$38<>\"Некачественный лид\")*($I$2:$I$38<>\"Постпродажный сервис\"),ROW($D$2:$D$38)-1),ROW(A37)))","v":{"$error":"#NUM!"}}]
[null,null,null,null,null,null,null,null,null,null,null,null,{"$f":"INDEX($D$2:$D$38,SMALL(IF(($I$2:$I$38<>\"Некачественный лид\")*($I$2:$I$38<>\"Постпродажный сервис\"),ROW($D$2:$D$38)-1),ROW(A38)))","v":{"$error":"#NUM!"}}]

{"sheet":"Лист2","index":1,"n_rows":0,"n_cols":0,"rows_kept":0,"cut":false,"hidden":false,"merged":[]}

{"sheet":"Лист3","index":2,"n_rows":0,"n_cols":0,"rows_kept":0,"cut":false,"hidden":false,"merged":[]}